[Event "8th Memorial Ekrem Galijatovic 2022"]
[Site "Sarajevo"]
[Date "2022.03.12"]
[Round "1"]
[White "Kurtcehajic, Suad"]
[Black "Dizdarevic, Emir"]
[Result "0-1"]
[ECO "B06"]
[WhiteElo "1968"]
[BlackElo "2379"]
[Annotator "RC"]
[PlyCount "162"]
[EventDate "2022.03.13"]
[EventType "tourn"]
[EventCountry "BIH"]
[SourceTitle "playchess.com"]
[Source "ChessBase"]
[SourceQuality "1"]
[TimeControl "5400+30"]

1. e4 {[%emt 0:02:48]} g6 {[%emt 0:00:18]} 2. d4 {[%emt 0:00:16]} Bg7 {[%emt 0:00:07]} 3. Be3 {[%emt 0:00:29]} d5 {[%emt 0:12:58]} 4. exd5 {[%emt 0:02:55]} Qxd5 {[%emt 0:01:40]} 5. Nc3 {[%emt 0:02:12]} Qd8 {[%emt 0:09:05]} 6. Bc4 {[%emt 0:02:37]} Nh6 {[%emt 0:00:53]} 7. Bxh6 {[%emt 0:11:59]} Bxh6 {[%emt 0:00:10]} 8. Nf3 {[%emt 0:00:08]} O-O {[%emt 0:02:22]} 9. O-O {[%emt 0:01:49]} Bg7 {[%emt 0:06:29]} 10. Ne4 {[%emt 0:03:17]} Bg4 {[%emt 0:08:08]} 11. c3 {[%emt 0:01:10]} Nd7 {[%emt 0:04:47]} 12. h3 {[%emt 0:01:28]} Bxf3 {[%emt 0:01:28]} 13. Qxf3 {[%emt 0:00:10]} e6 {[%emt 0:02:09]} 14. Rfe1 {[%emt 0:01:41]} c6 {[%emt 0:02:47]} 15. a4 {[%emt 0:03:44]} a5 {[%emt 0:06:01]} 16. Qe2 {[%emt 0:01:29]} Nb6 {[%emt 0:07:46]} 17. Bb3 {[%emt 0:02:51]} Nc8 {[%emt 0:00:57]} 18. Nc5 {[%emt 0:01:30]} Nd6 {[%emt 0:01:27]} 19. Qf3 {[%emt 0:04:04]} b6 {[%emt 0:02:20]} 20. Nd3 {[%emt 0:01:27]} Qc7 {[%emt 0:08:59]} 21. Re2 {[%emt 0:03:30]} c5 {[%emt 0:02:29]} 22. Ne5 {[%emt 0:06:50]} cxd4 {[%emt 0:00:38]} 23. cxd4 {[%emt 0:00:13]} Nf5 {[%emt 0:00:10]} 24. Rd1 {[%emt 0:06:05]} Bxe5 {[%emt 0:07:11]} 25. dxe5 {[%emt 0:00:34]} Rad8 {[%emt 0:00:08]} 26. Ree1 {[%emt 0:04:51]} Rxd1 {[%emt 0:00:43]} 27. Qxd1 {[%emt 0:04:14]} Rd8 {[%emt 0:00:32]} 28. Qe2 {[%emt 0:03:03]} h5 {[%emt 0:03:31]} 29. Qc4 {[%emt 0:07:04]} Qe7 {[%emt 0:04:11]} 30. Rc1 {[%emt 0:01:40]} Qg5 {[%emt 0:00:44]} 31. Rd1 {[%emt 0:03:12]} Rxd1+ {[%emt 0:01:25]} 32. Bxd1 {[%emt 0:00:04]} Qd2 {[%emt 0:00:06]} 33. Qe2 {[%emt 0:03:47]} Qd4 {[%emt 0:00:08]} 34. b3 {[%emt 0:05:34]} Ne7 {[%emt 0:00:26]} 35. Bc2 {[%emt 0:01:58]} Nc6 {[%emt 0:00:22]} 36. Qc4 {[%emt 0:01:57]} Qxc4 {[%emt 0:00:57]} 37. bxc4 {[%emt 0:00:04]} Nxe5 {[%emt 0:00:09]} 38. Bb3 {[%emt 0:00:02]} Kf8 {[%emt 0:00:33]} 39. Kf1 {[%emt 0:00:24]} Ke7 {[%emt 0:00:28]} 40. Ke2 {[%emt 0:00:08]} Kd6 {[%emt 0:00:57]} 41. f4 {[%emt 0:00:32]} Nd7 {[%emt 0:00:58]} 42. g4 {[%emt 0:00:43]} hxg4 {[%emt 0:01:00]} 43. hxg4 {[%emt 0:00:09]} Kc5 {[%emt 0:01:00]} 44. Kd3 {[%emt 0:01:48]} f5 {[%emt 0:00:51]} 45. gxf5 {[%emt 0:00:41]} exf5 {[%emt 0:00:59]} 46. Bd1 {[%emt 0:00:11]} Nf6 {[%emt 0:00:24]} 47. Bf3 {[%emt 0:01:26]} Nh5 {[%emt 0:00:22]} 48. Ke3 {[%emt 0:00:31]} Kxc4 {[%emt 0:00:16]} 49. Bc6 {[%emt 0:00:04]} Nf6 {[%emt 0:00:14]} 50. Kf3 {[%emt 0:01:15]} Kc5 {[%emt 0:00:54]} 51. Bb5 {[%emt 0:00:23]} Kd6 {[%emt 0:00:23]} 52. Kg3 {[%emt 0:00:55]} Ke7 {[%emt 0:00:32]} 53. Kf3 {[%emt 0:00:32]} Ne4 {[%emt 0:00:28]} 54. Bc6 {[%emt 0:00:25]} g5 {[%emt 0:00:52]} 55. fxg5 {[%emt 0:00:42]} Nxg5+ {[%emt 0:00:07]} 56. Kf4 {[%emt 0:00:11]} Kf6 {[%emt 0:00:07]} 57. Bd7 {[%emt 0:00:53]} Ne6+ {[%emt 0:00:07]} 58. Kf3 {[%emt 0:00:29]} Ke5 {[%emt 0:00:04]} 59. Be8 {[%emt 0:00:32]} Nc7 {[%emt 0:00:54]} 60. Bc6 {[%emt 0:00:40]} Kd6 {[%emt 0:00:35]} 61. Bb7 {[%emt 0:00:24]} b5 {[%emt 0:01:51]} 62. axb5 {[%emt 0:00:06]} Nxb5 {[%emt 0:00:10]} 63. Ke3 {[%emt 0:01:50]} a4 {[%emt 0:00:34]} 64. Kd3 {[%emt 0:00:52]} Kc5 {[%emt 0:00:13]} 65. Bc8 {[%emt 0:01:29]} f4 {[%emt 0:01:14]} 66. Be6 {[%emt 0:01:38]} Nd4 {[%emt 0:00:57]} 67. Bd7 {[%emt 0:00:09]} a3 {[%emt 0:00:31]} 68. Kc3 {[%emt 0:00:09]} f3 {[%emt 0:00:15]} 69. Bg4 {[%emt 0:00:42]} f2 {[%emt 0:00:11]} 70. Bh3 {[%emt 0:00:29]} Kd5 {[%emt 0:00:23]} 71. Bf1 {[%emt 0:01:04]} Ke4 {[%emt 0:00:17]} 72. Bc4 {[%emt 0:00:39]} Kf3 {[%emt 0:00:44]} 73. Bf1 {[%emt 0:00:35]} Kg3 {[%emt 0:00:10]} 74. Bc4 {[%emt 0:00:32]} Kh2 {[%emt 0:00:43]} 75. Kxd4 {[%emt 0:00:25]} a2 {[%emt 0:00:14]} 76. Bxa2 {[%emt 0:00:11]} f1=Q {[%emt 0:00:06]} 77. Bc4 {[%emt 0:00:39]} Qf6+ {[%emt 0:00:41]} 78. Kd3 {[%emt 0:00:07]} Kg3 {[%emt 0:00:07]} 79. Kc2 {[%emt 0:00:30]} Kf3 {[%emt 0:00:17]} 80. Ba2 {[%emt 0:00:34]} Ke3 {[%emt 0:00:21]} 81. Kb1 {[%emt 0:00:15]} Kd2 {[%emt 0:00:24]} 0-1

[Event "8th Memorial Ekrem Galijatovic 2022"]
[Site "Sarajevo"]
[Date "2022.03.12"]
[Round "1"]
[White "Selimovic, Amir"]
[Black "Konjicanin, Muris"]
[Result "0-1"]
[ECO "C12"]
[WhiteElo "1943"]
[BlackElo "2166"]
[Annotator "ChessBase"]
[PlyCount "60"]
[EventDate "2022.03.13"]
[EventType "tourn"]
[EventCountry "BIH"]
[SourceTitle "playchess.com"]
[Source "ChessBase"]
[SourceQuality "1"]
[TimeControl "5400+30"]

1. e4 {[%emt 0:00:12]} e6 {[%emt 0:00:06]} 2. d4 {[%emt 0:00:06]} d5 {[%emt 0:00:01]} 3. Nc3 {[%emt 0:00:10]} Nf6 {[%emt 0:01:26]} 4. Bg5 {[%emt 0:01:27]} Bb4 {[%emt 0:01:20]} 5. e5 {[%emt 0:04:51]} h6 {[%emt 0:00:36]} 6. Bd2 {[%emt 0:00:55]} Bxc3 {[%emt 0:00:12]} 7. bxc3 {[%emt 0:02:09]} Ne4 {[%emt 0:00:34]} 8. Qg4 {[%emt 0:02:52]} Kf8 {[%emt 0:00:34]} 9. Bc1 {[%emt 0:04:02]} c5 {[%emt 0:00:44]} 10. Bd3 {[%emt 0:06:40]} Nxc3 {[%emt 0:02:51]} 11. Ba3 {[%emt 0:07:01]} Nd7 {[%emt 0:03:16]} 12. Qf4 {[%emt 0:25:01]} Kg8 {[%emt 0:02:00]} 13. dxc5 {[%emt 0:01:26]} Qg5 {[%emt 0:04:19]} 14. Qxg5 {[%emt 0:08:20]} hxg5 {[%emt 0:00:09]} 15. Ne2 {[%emt 0:08:42]} Nxe2 {[%emt 0:04:18]} 16. Bxe2 {[%emt 0:03:00]} Nxe5 {[%emt 0:00:13]} 17. O-O {[%emt 0:00:48]} Bd7 {[%emt 0:00:33]} 18. Rab1 {[%emt 0:00:39]} Bc6 {[%emt 0:00:17]} 19. Bc1 {[%emt 0:01:28]} f6 {[%emt 0:00:43]} 20. f4 {[%emt 0:00:22]} gxf4 {[%emt 0:00:17]} 21. Bxf4 {[%emt 0:00:08]} Nd7 {[%emt 0:04:26]} 22. Bd6 {[%emt 0:00:59]} Rc8 {[%emt 0:04:37]} 23. Rfe1 {[%emt 0:02:58]} Kf7 {[%emt 0:00:59]} 24. Bf3 {[%emt 0:00:48]} Rh4 {[%emt 0:02:45]} 25. g4 {[%emt 0:00:12]} e5 {[%emt 0:05:15]} 26. c4 {[%emt 0:01:37]} dxc4 {[%emt 0:00:26]} 27. Bxc6 {[%emt 0:00:58]} Rxc6 {[%emt 0:01:02]} 28. Rxb7 {[%emt 0:00:21]} Rxg4+ {[%emt 0:00:25]} 29. Kf2 {[%emt 0:00:38]} Ke6 {[%emt 0:00:19]} 30. Rxa7 {[%emt 0:02:14]} Nxc5 {[%emt 0:00:26]} 0-1

[Event "8th Memorial Ekrem Galijatovic 2022"]
[Site "Sarajevo"]
[Date "2022.03.12"]
[Round "2"]
[White "Alhdad, Ahmed O."]
[Black "Haznadar, Nermin"]
[Result "1-0"]
[ECO "E01"]
[WhiteElo "1811"]
[BlackElo "1881"]
[Annotator "NA"]
[PlyCount "63"]
[EventDate "2022.03.13"]
[EventType "tourn"]
[EventCountry "BIH"]
[SourceTitle "playchess.com"]
[Source "ChessBase"]
[SourceQuality "1"]
[TimeControl "5400+30"]

1. d4 {[%emt 0:00:03]} d5 {[%emt 0:00:28]} 2. c4 {[%emt 0:00:20]} c6 {[%emt 0:00:38]} 3. g3 {[%emt 0:01:41]} Nf6 {[%emt 0:01:23]} 4. Nc3 {[%emt 0:00:23]} e6 {[%emt 0:02:25]} 5. Bg2 {[%emt 0:00:09]} Nbd7 {[%emt 0:01:26]} 6. Qc2 {[%emt 0:01:23]} Bd6 {[%emt 0:01:04]} 7. f4 {[%emt 0:01:28]} O-O {[%emt 0:03:18]} 8. c5 {[%emt 0:00:42]} Be7 {[%emt 0:02:27]} 9. Nf3 {[%emt 0:00:27]} b6 {[%emt 0:01:10]} 10. Ne5 {[%emt 0:05:13]} Bb7 {[%emt 0:04:13]} 11. b4 {[%emt 0:03:41]} a5 {[%emt 0:02:54]} 12. b5 {[%emt 0:00:32]} Nxe5 {[%emt 0:00:28]} 13. fxe5 {[%emt 0:06:34]} Nd7 {[%emt 0:00:18]} 14. bxc6 {[%emt 0:07:01]} Bxc6 {[%emt 0:00:23]} 15. cxb6 {[%emt 0:04:16]} Nxb6 {[%emt 0:01:05]} 16. O-O {[%emt 0:01:45]} Rc8 {[%emt 0:01:40]} 17. Qd3 {[%emt 0:01:08]} a4 {[%emt 0:14:01]} 18. Nd1 {[%emt 0:05:49]} Qd7 {[%emt 0:01:40]} 19. Rb1 {[%emt 0:06:29]} Nc4 {[%emt 0:00:41]} 20. Nf2 {[%emt 0:00:40]} Bb5 {[%emt 0:03:22]} 21. Qf3 {[%emt 0:00:47]} Nb6 {[%emt 0:02:03]} 22. Qh5 {[%emt 0:09:28]} f5 {[%emt 0:06:25]} 23. Nh3 {[%emt 0:01:00]} Rc2 {[%emt 0:01:21]} 24. Nf4 {[%emt 0:01:25]} Nc4 {[%emt 0:01:42]} 25. Nxe6 {[%emt 0:00:43]} Qxe6 {[%emt 0:00:39]} 26. Rxb5 {[%emt 0:00:06]} g6 {[%emt 0:00:37]} 27. Qh6 {[%emt 0:02:05]} Rd8 {[%emt 0:00:33]} 28. Bg5 {[%emt 0:00:44]} Bxg5 {[%emt 0:05:22]} 29. Qxg5 {[%emt 0:00:13]} Rd7 {[%emt 0:00:14]} 30. Rfb1 {[%emt 0:02:02]} Rxe2 {[%emt 0:03:09]} 31. Qh6 {[%emt 0:05:29]} Nd6 {[%emt 0:02:47]} 32. Bxd5 {[%emt 0:00:35]} 1-0

[Event "8th Memorial Ekrem Galijatovic 2022"]
[Site "Sarajevo"]
[Date "2022.03.12"]
[Round "2"]
[White "Mrkovic, Nikola"]
[Black "Konjicanin, Muris"]
[Result "1/2-1/2"]
[ECO "C01"]
[WhiteElo "1698"]
[BlackElo "2166"]
[Annotator "ChessBase"]
[PlyCount "111"]
[EventDate "2022.03.13"]
[EventType "tourn"]
[EventCountry "BIH"]
[SourceTitle "playchess.com"]
[Source "ChessBase"]
[SourceQuality "1"]
[TimeControl "5400+30"]

1. e4 {[%emt 0:00:07]} e6 {[%emt 0:00:17]} 2. d4 {[%emt 0:00:04]} d5 {[%emt 0:00:08]} 3. exd5 {[%emt 0:00:05]} exd5 {[%emt 0:00:10]} 4. Nf3 {[%emt 0:00:15]} Bd6 {[%emt 0:00:09]} 5. Bd3 {[%emt 0:02:56]} Ne7 {[%emt 0:00:16]} 6. O-O {[%emt 0:02:20]} Nbc6 {[%emt 0:00:31]} 7. c3 {[%emt 0:03:12]} Bg4 {[%emt 0:00:23]} 8. h3 {[%emt 0:05:51]} Bh5 {[%emt 0:00:13]} 9. Be3 {[%emt 0:06:25]} Qd7 {[%emt 0:01:38]} 10. Nbd2 {[%emt 0:02:58]} f6 {[%emt 0:00:34]} 11. Qc2 {[%emt 0:08:03]} O-O-O {[%emt 0:01:42]} 12. b4 {[%emt 0:03:42]} Rde8 {[%emt 0:00:44]} 13. a4 {[%emt 0:01:54]} Bg6 {[%emt 0:02:16]} 14. a5 {[%emt 0:05:06]} Bxd3 {[%emt 0:00:22]} 15. Qxd3 {[%emt 0:00:19]} Qf5 {[%emt 0:03:24]} 16. Qe2 {[%emt 0:10:45]} h5 {[%emt 0:02:40]} 17. b5 {[%emt 0:02:28]} Nb8 {[%emt 0:05:21]} 18. Rfc1 {[%emt 0:11:32]} g5 {[%emt 0:02:17]} 19. c4 {[%emt 0:05:14]} Ng6 {[%emt 0:02:29]} 20. cxd5 {[%emt 0:06:27]} g4 {[%emt 0:03:39]} 21. Nc4 {[%emt 0:04:21]} Qxd5 {[%emt 0:03:52]} 22. Ne1 {[%emt 0:04:17]} gxh3 {[%emt 0:02:37]} 23. Qf3 {[%emt 0:06:00]} Qxf3 {[%emt 0:01:44]} 24. Nxf3 {[%emt 0:00:41]} Kd7 {[%emt 0:00:52]} 25. Nxd6 {[%emt 0:01:25]} cxd6 {[%emt 0:03:12]} 26. gxh3 {[%emt 0:00:36]} Ne7 {[%emt 0:00:21]} 27. d5 {[%emt 0:01:59]} a6 {[%emt 0:00:28]} 28. bxa6 {[%emt 0:00:32]} Rhg8+ {[%emt 0:12:08]} 29. Kh1 {[%emt 0:00:46]} Nxa6 {[%emt 0:08:51]} 30. Rab1 {[%emt 0:00:35]} Nxd5 {[%emt 0:03:57]} 31. Rxb7+ {[%emt 0:00:45]} Ke6 {[%emt 0:00:36]} 32. Re1 {[%emt 0:02:26]} Nxe3 {[%emt 0:09:46]} 33. Rxe3+ {[%emt 0:00:03]} Kd5 {[%emt 0:00:28]} 34. Rxe8 {[%emt 0:00:31]} Rxe8 {[%emt 0:00:11]} 35. Rh7 {[%emt 0:00:07]} Ke4 {[%emt 0:00:28]} 36. Nh4 {[%emt 0:00:54]} Re5 {[%emt 0:00:14]} 37. Rh6 {[%emt 0:00:41]} Rxa5 {[%emt 0:01:50]} 38. Rxf6 {[%emt 0:00:29]} d5 {[%emt 0:00:38]} 39. Rf5 {[%emt 0:01:10]} Ra1+ {[%emt 0:00:48]} 40. Kg2 {[%emt 0:00:04]} d4 {[%emt 0:03:47]} 41. f3+ {[%emt 0:01:12]} Ke3 {[%emt 0:01:11]} 42. Re5+ {[%emt 0:00:19]} Kd2 {[%emt 0:00:18]} 43. f4 {[%emt 0:00:34]} d3 {[%emt 0:00:40]} 44. Nf3+ {[%emt 0:01:26]} Kc3 {[%emt 0:00:24]} 45. Rxh5 {[%emt 0:00:36]} Ra4 {[%emt 0:01:09]} 46. Kg3 {[%emt 0:00:23]} Rc4 {[%emt 0:00:23]} 47. Rd5 {[%emt 0:00:41]} Rc8 {[%emt 0:01:12]} 48. f5 {[%emt 0:00:42]} Nb4 {[%emt 0:00:35]} 49. Rd6 {[%emt 0:00:13]} Nc2 {[%emt 0:01:35]} 50. Ne5 {[%emt 0:00:45]} Nd4 {[%emt 0:01:35]} 51. Kf4 {[%emt 0:00:32]} d2 {[%emt 0:18:38]} 52. Rxd4 {[%emt 0:00:06]} Kxd4 {[%emt 0:00:14]} 53. Nf3+ {[%emt 0:00:03]} Kd3 {[%emt 0:01:03]} 54. Nxd2 {[%emt 0:00:04]} Kxd2 {[%emt 0:00:07]} 55. f6 {[%emt 0:00:15]} Rh8 {[%emt 0:00:21]} 56. Ke4 {[%emt 0:01:42]} 1/2-1/2

[Event "8th Memorial Ekrem Galijatovic 2022"]
[Site "Sarajevo"]
[Date "2022.03.13"]
[Round "3"]
[White "Kurtcehajic, Suad"]
[Black "Mrkovic, Nikola"]
[Result "1-0"]
[ECO "C54"]
[WhiteElo "1968"]
[BlackElo "1698"]
[Annotator "NA"]
[PlyCount "61"]
[EventDate "2022.03.13"]
[EventType "tourn"]
[EventCountry "BIH"]
[SourceTitle "playchess.com"]
[Source "ChessBase"]
[SourceQuality "1"]
[TimeControl "5400+30"]

1. e4 {[%emt 0:09:40]} e5 {[%emt 0:00:03]} 2. Nf3 {[%emt 0:00:06]} Nc6 {[%emt 0:00:02]} 3. Bc4 {[%emt 0:00:05]} Bc5 {[%emt 0:00:01]} 4. c3 {[%emt 0:00:14]} Nf6 {[%emt 0:00:05]} 5. d3 {[%emt 0:00:09]} d6 {[%emt 0:00:02]} 6. O-O {[%emt 0:00:27]} a6 {[%emt 0:00:51]} 7. b4 {[%emt 0:00:57]} Ba7 {[%emt 0:00:19]} 8. h3 {[%emt 0:02:57]} Be6 {[%emt 0:01:29]} 9. Nbd2 {[%emt 0:02:57]} h6 {[%emt 0:01:19]} 10. Re1 {[%emt 0:00:40]} O-O {[%emt 0:01:12]} 11. a3 {[%emt 0:01:24]} Re8 {[%emt 0:04:57]} 12. Bb3 {[%emt 0:04:31]} d5 {[%emt 0:08:22]} 13. exd5 {[%emt 0:06:53]} Nxd5 {[%emt 0:03:53]} 14. Ne4 {[%emt 0:03:18]} Nf6 {[%emt 0:18:40]} 15. Bxe6 {[%emt 0:09:30]} Rxe6 {[%emt 0:03:34]} 16. Nxf6+ {[%emt 0:00:07]} Qxf6 {[%emt 0:01:00]} 17. Be3 {[%emt 0:00:07]} Bxe3 {[%emt 0:02:14]} 18. Rxe3 {[%emt 0:00:10]} Rd8 {[%emt 0:00:52]} 19. Qe2 {[%emt 0:02:13]} Red6 {[%emt 0:04:15]} 20. Nd2 {[%emt 0:14:10]} Qg6 {[%emt 0:07:17]} 21. Ne4 {[%emt 0:03:06]} Rd5 {[%emt 0:06:47]} 22. Nc5 {[%emt 0:00:21]} b6 {[%emt 0:09:41]} 23. Nxa6 {[%emt 0:01:20]} Rxd3 {[%emt 0:01:56]} 24. Nxc7 {[%emt 0:00:33]} Rxe3 {[%emt 0:05:29]} 25. Qxe3 {[%emt 0:00:18]} Rd3 {[%emt 0:03:31]} 26. Qxb6 {[%emt 0:08:52]} Rxc3 {[%emt 0:03:06]} 27. Nd5 {[%emt 0:00:11]} Rd3 {[%emt 0:02:00]} 28. Qxc6 {[%emt 0:00:48]} Qh5 {[%emt 0:06:24]} 29. Qc8+ {[%emt 0:00:42]} Kh7 {[%emt 0:00:19]} 30. Ne7 {[%emt 0:00:08]} Rd1+ {[%emt 0:01:28]} 31. Kh2 {[%emt 0:00:01]} 1-0

[Event "8th Memorial Ekrem Galijatovic 2022"]
[Site "Sarajevo"]
[Date "2022.03.13"]
[Round "3"]
[White "Selimovic, Amir"]
[Black "Alhdad, Ahmed O."]
[Result "0-1"]
[ECO "B07"]
[WhiteElo "1943"]
[BlackElo "1811"]
[Annotator "NA"]
[PlyCount "186"]
[EventDate "2022.03.13"]
[EventType "tourn"]
[EventCountry "BIH"]
[SourceTitle "playchess.com"]
[Source "ChessBase"]
[SourceQuality "1"]
[TimeControl "5400+30"]

1. e4 {[%emt 0:00:11]} d6 {[%emt 0:00:06]} 2. d4 {[%emt 0:00:07]} Nf6 {[%emt 0:00:06]} 3. Nc3 {[%emt 0:00:09]} g6 {[%emt 0:02:16]} 4. Bg5 {[%emt 0:01:42]} Bg7 {[%emt 0:00:29]} 5. e5 {[%emt 0:01:07]} Nfd7 {[%emt 0:08:15]} 6. exd6 {[%emt 0:00:49]} cxd6 {[%emt 0:00:08]} 7. Qd2 {[%emt 0:01:12]} Nc6 {[%emt 0:03:41]} 8. Nf3 {[%emt 0:01:20]} h6 {[%emt 0:06:12]} 9. Be3 {[%emt 0:06:31]} Nf6 {[%emt 0:02:45]} 10. h3 {[%emt 0:08:05]} Bd7 {[%emt 0:03:20]} 11. Be2 {[%emt 0:04:36]} Rc8 {[%emt 0:01:53]} 12. O-O {[%emt 0:04:31]} a6 {[%emt 0:06:28]} 13. a4 {[%emt 0:03:39]} Qc7 {[%emt 0:05:26]} 14. d5 {[%emt 0:09:26]} Na5 {[%emt 0:01:15]} 15. Bd4 {[%emt 0:00:31]} Nc4 {[%emt 0:01:35]} 16. Bxc4 {[%emt 0:05:49]} Qxc4 {[%emt 0:00:05]} 17. Rfe1 {[%emt 0:00:59]} Qc7 {[%emt 0:14:07]} 18. Qe2 {[%emt 0:12:09]} O-O {[%emt 0:00:32]} 19. a5 {[%emt 0:02:53]} Rce8 {[%emt 0:01:14]} 20. Bb6 {[%emt 0:05:45]} Qc8 {[%emt 0:00:45]} 21. Qd2 {[%emt 0:02:11]} Kh7 {[%emt 0:04:26]} 22. Bd4 {[%emt 0:01:38]} Bf5 {[%emt 0:08:06]} 23. Nh4 {[%emt 0:03:07]} Bd7 {[%emt 0:08:20]} 24. Na4 {[%emt 0:03:27]} Bxa4 {[%emt 0:07:44]} 25. Rxa4 {[%emt 0:00:18]} Qd7 {[%emt 0:00:12]} 26. Rb4 {[%emt 0:03:14]} Nh5 {[%emt 0:02:55]} 27. Bxg7 {[%emt 0:00:53]} Nxg7 {[%emt 0:00:15]} 28. Rb6 {[%emt 0:02:31]} Rc8 {[%emt 0:00:39]} 29. c3 {[%emt 0:00:41]} Rc7 {[%emt 0:03:33]} 30. Qd4 {[%emt 0:02:23]} Rfc8 {[%emt 0:00:59]} 31. Qe4 {[%emt 0:03:56]} f5 {[%emt 0:00:19]} 32. Qb4 {[%emt 0:00:33]} Rf8 {[%emt 0:01:12]} 33. Nf3 {[%emt 0:00:19]} Qc8 {[%emt 0:00:53]} 34. Nd4 {[%emt 0:00:32]} Rf6 {[%emt 0:00:45]} 35. Qb3 {[%emt 0:01:03]} Qd7 {[%emt 0:01:15]} 36. Ne6 {[%emt 0:01:13]} Nxe6 {[%emt 0:00:10]} 37. Rxe6 {[%emt 0:00:24]} Rxe6 {[%emt 0:00:12]} 38. dxe6 {[%emt 0:00:02]} Qc8 {[%emt 0:00:27]} 39. h4 {[%emt 0:01:29]} Kg7 {[%emt 0:00:17]} 40. h5 {[%emt 0:00:15]} g5 {[%emt 0:02:22]} 41. Qd5 {[%emt 0:01:01]} Kf6 {[%emt 0:02:02]} 42. Qd4+ {[%emt 0:00:26]} Kxe6 {[%emt 0:00:08]} 43. Qg7 {[%emt 0:00:26]} Kd5 {[%emt 0:01:05]} 44. Qxh6 {[%emt 0:05:38]} Qg8 {[%emt 0:00:17]} 45. f4 {[%emt 0:01:25]} g4 {[%emt 0:01:01]} 46. Rb4 {[%emt 0:01:19]} Rc5 {[%emt 0:01:39]} 47. Rd4+ {[%emt 0:00:46]} Kc6 {[%emt 0:00:07]} 48. Qg6 {[%emt 0:00:29]} Qxg6 {[%emt 0:01:41]} 49. hxg6 {[%emt 0:00:02]} Kd7 {[%emt 0:00:05]} 50. Rb4 {[%emt 0:01:10]} Ke6 {[%emt 0:01:07]} 51. Rxb7 {[%emt 0:00:11]} Kf6 {[%emt 0:00:33]} 52. g7 {[%emt 0:00:26]} Kxg7 {[%emt 0:00:18]} 53. Rxe7+ {[%emt 0:00:19]} Kf6 {[%emt 0:00:05]} 54. Rb7 {[%emt 0:01:10]} Rxa5 {[%emt 0:00:14]} 55. Kf2 {[%emt 0:00:14]} Ke6 {[%emt 0:00:26]} 56. Ke3 {[%emt 0:00:34]} Ra4 {[%emt 0:01:02]} 57. g3 {[%emt 0:00:56]} Kd5 {[%emt 0:00:35]} 58. Rf7 {[%emt 0:00:24]} Re4+ {[%emt 0:00:31]} 59. Kf2 {[%emt 0:00:10]} Ke6 {[%emt 0:00:10]} 60. Ra7 {[%emt 0:00:05]} Ra4 {[%emt 0:00:45]} 61. Ke3 {[%emt 0:00:06]} Ra2 {[%emt 0:00:36]} 62. Rb7 {[%emt 0:01:01]} a5 {[%emt 0:00:17]} 63. Rb5 {[%emt 0:01:27]} a4 {[%emt 0:00:32]} 64. Rb8 {[%emt 0:00:06]} a3 {[%emt 0:00:54]} 65. bxa3 {[%emt 0:00:12]} Rg2 {[%emt 0:00:10]} 66. Re8+ {[%emt 0:00:13]} Kf7 {[%emt 0:00:19]} 67. Rc8 {[%emt 0:00:10]} Rxg3+ {[%emt 0:00:09]} 68. Ke2 {[%emt 0:00:15]} Rf3 {[%emt 0:00:24]} 69. Rc4 {[%emt 0:00:09]} Ke6 {[%emt 0:00:14]} 70. a4 {[%emt 0:00:21]} Kd5 {[%emt 0:00:17]} 71. Rd4+ {[%emt 0:00:26]} Kc5 {[%emt 0:00:08]} 72. a5 {[%emt 0:00:28]} Rxc3 {[%emt 0:00:11]} 73. Ra4 {[%emt 0:00:03]} Kb5 {[%emt 0:00:42]} 74. Rd4 {[%emt 0:00:23]} Kc6 {[%emt 0:01:49]} 75. Ra4 {[%emt 0:00:06]} Kb7 {[%emt 0:01:03]} 76. Rd4 {[%emt 0:00:33]} Rf3 {[%emt 0:00:36]} 77. Ra4 {[%emt 0:00:48]} Ka6 {[%emt 0:00:15]} 78. Rd4 {[%emt 0:00:11]} Kxa5 {[%emt 0:00:50]} 79. Rd5+ {[%emt 0:00:05]} Kb4 {[%emt 0:00:03]} 80. Rxf5 {[%emt 0:00:10]} Kc4 {[%emt 0:00:17]} 81. Ra5 {[%emt 0:00:14]} d5 {[%emt 0:00:29]} 82. f5 {[%emt 0:00:31]} Rxf5 {[%emt 0:01:03]} 83. Ra4+ {[%emt 0:00:06]} Kc3 {[%emt 0:00:10]} 84. Rxg4 {[%emt 0:00:22]} d4 {[%emt 0:00:55]} 85. Rg8 {[%emt 0:00:26]} Re5+ {[%emt 0:00:18]} 86. Kd1 {[%emt 0:00:10]} Rh5 {[%emt 0:00:14]} 87. Rg3+ {[%emt 0:01:23]} d3 {[%emt 0:00:35]} 88. Ke1 {[%emt 0:00:31]} Rh1+ {[%emt 0:00:24]} 89. Kf2 {[%emt 0:00:10]} Kc2 {[%emt 0:00:26]} 90. Rg8 {[%emt 0:00:14]} d2 {[%emt 0:00:29]} 91. Rc8+ {[%emt 0:00:09]} Kb3 {[%emt 0:00:15]} 92. Rb8+ {[%emt 0:00:15]} Kc4 {[%emt 0:00:14]} 93. Rc8+ {[%emt 0:00:04]} Kb5 {[%emt 0:00:13]} 0-1

[Event "8th Memorial Ekrem Galijatovic 2022"]
[Site "Sarajevo"]
[Date "2022.03.13"]
[Round "4.2"]
[White "Alhdad, Ahmed O."]
[Black "Konjicanin, Muris"]
[Result "0-1"]
[ECO "E63"]
[WhiteElo "1811"]
[BlackElo "2166"]
[Annotator "ChessBase"]
[PlyCount "79"]
[EventDate "2022.03.13"]
[EventType "tourn"]
[EventCountry "BIH"]
[SourceTitle "playchess.com"]
[Source "ChessBase"]
[SourceQuality "1"]
[TimeControl "5400+30"]

1. d4 {[%emt 0:02:41]} Nf6 {[%emt 0:00:29]} 2. Nf3 {[%emt 0:00:11]} g6 {[%emt 0:00:13]} 3. g3 {[%emt 0:01:20]} Bg7 {[%emt 0:00:10]} 4. Bg2 {[%emt 0:00:06]} O-O {[%emt 0:00:09]} 5. O-O {[%emt 0:00:24]} d6 {[%emt 0:00:09]} 6. c4 {[%emt 0:00:58]} a6 {[%emt 0:00:12]} 7. Nc3 {[%emt 0:00:21]} Nc6 {[%emt 0:00:19]} 8. e4 {[%emt 0:04:48]} Rb8 {[%emt 0:00:31]} 9. a4 {[%emt 0:02:14]} Na5 {[%emt 0:04:49]} 10. Nd2 {[%emt 0:07:35]} c5 {[%emt 0:00:38]} 11. d5 {[%emt 0:01:05]} e6 {[%emt 0:05:03]} 12. h3 {[%emt 0:01:18]} exd5 {[%emt 0:00:22]} 13. cxd5 {[%emt 0:01:52]} b5 {[%emt 0:00:58]} 14. axb5 {[%emt 0:00:37]} axb5 {[%emt 0:00:07]} 15. f4 {[%emt 0:02:14]} Re8 {[%emt 0:00:52]} 16. Qf3 {[%emt 0:07:56]} Nd7 {[%emt 0:03:22]} 17. e5 {[%emt 0:06:01]} dxe5 {[%emt 0:02:42]} 18. f5 {[%emt 0:00:26]} e4 {[%emt 0:05:00]} 19. Ndxe4 {[%emt 0:04:42]} Ne5 {[%emt 0:00:37]} 20. Qd1 {[%emt 0:11:36]} Bxf5 {[%emt 0:15:12]} 21. Rxf5 {[%emt 0:13:36]} gxf5 {[%emt 0:00:20]} 22. Ng5 {[%emt 0:00:46]} h6 {[%emt 0:04:54]} 23. Nf3 {[%emt 0:01:16]} Nac4 {[%emt 0:02:31]} 24. Nh4 {[%emt 0:01:05]} Qf6 {[%emt 0:04:13]} 25. Qh5 {[%emt 0:08:37]} Nd3 {[%emt 0:02:17]} 26. Bf4 {[%emt 0:01:34]} Nxf4 {[%emt 0:00:19]} 27. gxf4 {[%emt 0:00:05]} Nxb2 {[%emt 0:03:17]} 28. Ne2 {[%emt 0:02:39]} Rxe2 {[%emt 0:00:26]} 29. Qxe2 {[%emt 0:00:14]} Qxh4 {[%emt 0:00:30]} 30. Ra7 {[%emt 0:01:49]} Nc4 {[%emt 0:02:54]} 31. d6 {[%emt 0:02:32]} Bd4+ {[%emt 0:01:47]} 32. Kh1 {[%emt 0:00:13]} Qxf4 {[%emt 0:02:19]} 33. d7 {[%emt 0:00:53]} Qc1+ {[%emt 0:03:07]} 34. Bf1 {[%emt 0:01:38]} Ne3 {[%emt 0:00:34]} 35. Rc7 {[%emt 0:00:12]} Rd8 {[%emt 0:01:20]} 36. Rc8 {[%emt 0:00:51]} Bf6 {[%emt 0:00:17]} 37. Qxb5 {[%emt 0:00:36]} Qxf1+ {[%emt 0:00:24]} 38. Qxf1 Nxf1 39. Rxc5 {[%emt 0:01:03]} Rxd7 {[%emt 0:00:39]} 40. Rxf5 {[%emt 0:00:06]} 0-1